bitfinex-derivatives/quotes_BTCF0:USTF0_20250709
["timestamp","ask_amount","ask_price","bid_price","bid_amount"]
[1752089835678,0.3628,110600.0,110550.0,0.3608]
[1752089835976,0.08121139,110580.0,110550.0,0.37283478]
[1752089836166,0.65347666,110830.0,110550.0,0.37283478]
[1752089836167,0.35190719,110760.0,110620.0,0.001]
[1752089836369,0.1804669,110800.0,110770.0,0.1805062]
[1752089836568,0.01210919,110810.0,110780.0,0.34611161]
[1752089836869,1.56756,110840.0,110810.0,0.3608]
[1752089837072,0.0246,110830.0,110780.0,0.34013569]
[1752089837269,0.1037,110830.0,110820.0,0.7216]
[1752089837472,0.56949054,110830.0,110820.0,0.7215213]
[1752089837779,0.002,110840.0,110830.0,0.3608]
[1752089838077,1.45229164,110850.0,110830.0,0.7216]
[1752089838379,0.03708796,110910.0,110840.0,1.7431461]
[1752089838576,0.0386,110900.0,110890.0,0.180316]
[1752089838876,0.0386,110900.0,110890.0,0.57188507]
[1752089838877,0.01197511,110900.0,110890.0,0.57188507]
[1752089839086,3e-08,110930.0,110910.0,0.0450678]
[1752089839378,0.3714,110980.0,110920.0,0.3608]
[1752089839576,0.3714,110980.0,110930.0,0.3608]
[1752089839780,0.70759808,110960.0,110930.0,0.26083662]
[1752089839975,0.09549737,110960.0,110940.0,0.3608]
[1752089840166,0.09649737,110970.0,110940.0,0.3608]
[1752089840167,0.70304025,110990.0,110950.0,0.3608]
[1752089840368,0.45304025,110990.0,110970.0,0.3608]
[1752089840570,0.10000016,110950.0,110930.0,0.3608]
[1752089840882,0.003,111000.0,110930.0,0.40245023]
[1752089841080,0.002,111050.0,110930.0,0.40245023]
[1752089841081,0.1,111030.0,110970.0,0.36583651]
[1752089841279,0.0246,111060.0,110990.0,0.3608]
[1752089841478,0.0246,111060.0,111020.0,0.3608]
[1752089841685,0.09561562,111060.0,111050.0,0.2492763]
[1752089841891,0.0920052,111120.0,111050.0,0.7112563]
[1752089842184,0.37543651,111060.0,111040.0,0.3608]
[1752089842385,0.1800886,111030.0,111020.0,0.3608]
[1752089842573,0.0096,111030.0,111000.0,0.01715612]
[1752089842884,0.3608,111040.0,111030.0,0.36018]
[1752089843071,0.0096,111040.0,111020.0,0.3608]
[1752089843379,0.0450154,111050.0,111000.0,0.27053507]
[1752089843584,1.54512462,111040.0,111020.0,7.35e-05]
[1752089843783,1.54512462,111040.0,111010.0,0.72098]
[1752089843784,0.95175671,111030.0,111010.0,0.72098]
[1752089843982,0.14852299,111070.0,111050.0,0.17999982]
[1752089843983,0.3608,111070.0,111050.0,0.17999982]
[1752089844182,0.3608,111100.0,111050.0,0.17999982]
[1752089844478,1.08743651,111060.0,111000.0,0.38529172]
[1752089844684,0.72627142,111010.0,110980.0,0.02269]
[1752089844874,0.0096,111050.0,111000.0,0.36118595]
[1752089845076,0.0096,111060.0,111040.0,0.3608]
[1752089845281,2.22627142,111050.0,111040.0,0.00180107]
[1752089845476,2.22627142,111050.0,110990.0,0.02449188]
[1752089845672,0.35899941,111000.0,110990.0,0.22990991]
[1752089845884,0.3608,111010.0,111000.0,0.1801373]
[1752089846084,0.01608,111040.0,110990.0,0.0450364]
[1752089846085,0.01608,111040.0,110990.0,0.2252192]
[1752089846382,0.3608,111050.0,110990.0,0.2252192]
[1752089846383,0.36547142,111060.0,111030.0,0.3608]
[1752089846574,1.5,111050.0,111040.0,0.3608]
[1752089846775,1.5,111050.0,111030.0,0.35278413]
[1752089846981,1.5,111050.0,111040.0,0.5408724]
[1752089847175,0.3608,111080.0,111030.0,0.3508]
[1752089847176,0.36547142,111060.0,111030.0,0.3508]
[1752089847384,0.36547142,111070.0,111040.0,0.3608]
[1752089847576,0.36547142,111070.0,111040.0,0.8608]
[1752089847776,1.5,111060.0,111040.0,1.0408688]
[1752089847984,0.002,111050.0,111040.0,0.59185358]
[1752089848179,0.002,111050.0,111040.0,0.95265358]
[1752089848381,0.002,111050.0,111040.0,0.95065358]
[1752089848580,0.002,111050.0,111040.0,1.15341598]
[1752089848777,0.002,111050.0,111040.0,0.97334358]
[1752089848987,0.002,111050.0,111040.0,0.97154358]
[1752089849282,0.0369,111070.0,111040.0,1.0615603]
[1752089849485,0.4013,111080.0,111060.0,0.3608]
[1752089849486,0.002,111080.0,111060.0,0.3608]
[1752089849685,0.3608,111090.0,111070.0,0.3608]
[1752089849882,0.36547142,111080.0,111060.0,0.3626]
[1752089850079,0.36547142,111080.0,111060.0,0.3608]
[1752089850389,0.36547142,111100.0,111080.0,0.498]
[1752089850687,0.3748642,111120.0,111090.0,0.0449965]
[1752089850885,0.002,111120.0,111100.0,0.0018]
[1752089851085,0.1799913,111090.0,111080.0,0.498]
[1752089851290,0.46219558,111120.0,111090.0,0.0449968]
[1752089851493,0.407787,111120.0,111090.0,0.3608]
[1752089851681,0.002,111120.0,111090.0,0.4075961]
[1752089851878,0.002,111120.0,111090.0,0.45260495]
[1752089852083,0.2269374,111120.0,111090.0,0.63259425]
[1752089852279,1.5,111110.0,111090.0,0.3626]
[1752089852586,0.73587142,111110.0,111100.0,0.498]
[1752089852786,1.12487142,111110.0,111100.0,0.498]
[1752089852982,0.36547142,111110.0,111100.0,0.498]
[1752089853187,0.58323042,111110.0,111100.0,0.498]
[1752089853583,2.98191842,111110.0,111100.0,0.4368]
[1752089853895,0.1799752,111100.0,111090.0,0.001]
[1752089854187,0.1799752,111100.0,111020.0,0.3608]
[1752089854188,0.1800602,111050.0,111020.0,0.3608]
[1752089854379,1.31219292,111030.0,111000.0,0.00280172]
[1752089854583,1.31219292,111030.0,110970.0,0.72627142]
[1752089854584,0.95142752,111010.0,110970.0,0.6707634]
[1752089854784,0.3608,110990.0,110970.0,0.5611785]
[1752089854989,0.3608,111000.0,110980.0,0.77131242]
[1752089854990,0.00013507,111000.0,110980.0,0.77131242]
[1752089855189,0.00013507,111000.0,110980.0,0.95167032]
[1752089855190,0.36093507,111000.0,110980.0,0.95167032]
[1752089855484,0.36093507,111000.0,110990.0,0.5]
[1752089855680,0.36093507,111000.0,110990.0,0.6801535]
[1752089855883,0.00013507,111000.0,110990.0,1.0001535]
[1752089856079,0.00013507,111000.0,110990.0,1.36562492]
[1752089856282,0.00013507,111000.0,110990.0,1.36662492]
[1752089856479,0.00013507,111000.0,110990.0,1.38931492]
[1752089856683,0.00013507,111000.0,110990.0,1.38831492]
[1752089856885,0.00013507,111000.0,110990.0,0.84369]
[1752089857081,0.00013507,111000.0,110990.0,1.0238435]
[1752089857285,0.00013507,111000.0,110990.0,0.84369]
[1752089857486,0.03853507,111000.0,110990.0,1.0138435]
[1752089857696,0.03853507,111000.0,110990.0,0.52369]
[1752089857892,0.03853507,111000.0,110980.0,0.1801658]
[1752089858097,0.39933507,111000.0,110980.0,0.5852037]
[1752089858284,0.39933507,111000.0,110980.0,0.2051566]
[1752089858487,0.39933507,111000.0,110980.0,0.33599]
[1752089858683,0.39933507,111000.0,110980.0,0.42007557]
[1752089858990,0.02771908,111000.0,110990.0,0.57061492]
[1752089859189,0.3608,111010.0,110990.0,0.73510707]
[1752089859384,0.3508,111010.0,111000.0,0.2051273]
[1752089859694,0.3508,111010.0,111000.0,0.02464565]
[1752089859889,0.3508,111010.0,111000.0,0.02464548]
[1752089860091,1.14644742,111010.0,110990.0,0.5]
[1752089860291,0.72627142,111000.0,110990.0,0.5]
[1752089860688,1.15646342,111000.0,110990.0,0.40987629]
[1752089860891,2.97854342,111000.0,110980.0,0.00013507]
[1752089861086,0.3608,110990.0,110980.0,0.00013507]
[1752089861795,0.72627142,110990.0,110960.0,0.02779237]
[1752089861993,0.3508,110970.0,110960.0,0.37679237]
[1752089862193,0.3608,110980.0,110960.0,0.61713208]
[1752089862597,0.3608,110980.0,110960.0,0.55699467]
[1752089862792,0.3608,110980.0,110960.0,0.35180237]
[1752089863095,0.3608,110980.0,110960.0,0.53200077]
[1752089863298,0.3608,110980.0,110960.0,0.54708426]
[1752089863501,0.3608,110980.0,110960.0,0.62213481]
[1752089863800,0.3608,110980.0,110970.0,0.02499]
[1752089864001,0.3608,110980.0,110970.0,0.21499]
[1752089864187,0.3608,111000.0,110970.0,0.21499]
[1752089864392,0.3608,111000.0,110970.0,0.3951746]
[1752089864596,0.3608,111000.0,110970.0,0.22499]
[1752089864897,0.3608,110990.0,110970.0,0.22499]
[1752089865093,0.041,110980.0,110970.0,0.03907567]
[1752089865289,0.03254865,110980.0,110970.0,0.03907567]
[1752089865696,0.03254865,110980.0,110970.0,0.57926177]
[1752089865996,0.03254865,110980.0,110970.0,1.12534709]
[1752089866194,0.03254865,110980.0,110970.0,0.58006177]
[1752089866390,0.001,110980.0,110970.0,0.76028577]
[1752089866591,2.1628,110990.0,110980.0,0.001]
[1752089866790,2.52827142,110990.0,110980.0,0.01408567]
[1752089866996,2.73116942,110990.0,110960.0,0.00180237]
[1752089867198,0.72627142,110970.0,110960.0,0.22180237]
[1752089867493,0.7216,110970.0,110960.0,0.22180237]
[1752089867898,0.7216,110970.0,110960.0,0.40200467]
[1752089867899,0.7173736,110970.0,110960.0,0.40200467]
[1752089868099,0.7173736,110970.0,110960.0,0.22180237]
[1752089868299,0.50865718,110970.0,110960.0,0.27589726]
[1752089868496,0.72627142,110980.0,110960.0,0.77075634]
[1752089868696,2.52827142,110990.0,110960.0,0.97075634]
[1752089868997,2.1628,110990.0,110970.0,0.97348562]
[1752089869203,1.63968077,110990.0,110970.0,1.20776261]
[1752089869392,1.63968077,110990.0,110980.0,0.3608]
[1752089869592,0.36547142,110990.0,110980.0,0.05409489]
[1752089869898,0.3608,111010.0,110980.0,0.41489489]
[1752089870204,0.3608,111010.0,111000.0,0.25530017]
[1752089870392,0.3608,111010.0,111000.0,0.30939506]
[1752089870702,0.36547142,111020.0,111000.0,0.30939506]
[1752089870899,0.0405,111010.0,111000.0,0.30939506]
[1752089871101,0.0405,111010.0,111000.0,0.41489489]
[1752089871701,0.0814,111010.0,111000.0,0.41589489]
[1752089872095,0.0814,111010.0,111000.0,0.06917923]
[1752089872898,0.0814,111010.0,111000.0,0.06917905]
[1752089873099,0.0794,111010.0,111000.0,0.42897905]
[1752089874205,0.0794,111010.0,111000.0,0.43954186]
[1752089874507,0.0794,111010.0,111000.0,0.46453186]
[1752089874691,0.0794,111010.0,111000.0,0.43954186]
[1752089874899,0.0794,111010.0,111000.0,0.46453176]
[1752089875209,0.0794,111010.0,111000.0,3.31977085]
[1752089875395,1.59941138,111050.0,111010.0,0.36547142]
[1752089875710,1.23861138,111050.0,111040.0,0.17883984]
[1752089875903,1.6040828,111050.0,111040.0,0.15689972]
[1752089876205,2.3949868,111050.0,111040.0,0.28465387]
[1752089876398,2.3949868,111050.0,111040.0,0.01408416]
[1752089876998,2.3989868,111050.0,111040.0,0.01508416]
[1752089877695,2.7693868,111050.0,111000.0,0.00180172]
[1752089877900,0.36547142,111010.0,110970.0,0.02499]
[1752089878100,0.36547142,110980.0,110970.0,0.39635339]
[1752089878294,0.36547142,110990.0,110970.0,0.39635339]
[1752089878499,0.038,110980.0,110970.0,0.39635339]
[1752089879006,0.038,110980.0,110970.0,0.41043913]
[1752089879204,0.36547142,111020.0,110970.0,1.13591055]
[1752089879409,0.028,111010.0,110980.0,0.5659531]
[1752089879597,0.028,111010.0,110990.0,0.38579]
[1752089879796,0.028,111010.0,110990.0,1.71083144]
[1752089880000,0.028,111010.0,110990.0,1.8788326]
[1752089880216,0.028,111010.0,110990.0,1.69868]
[1752089880403,0.028,111010.0,110990.0,1.92912388]
[1752089880600,0.38,111010.0,111000.0,0.38579]
[1752089880803,0.38,111010.0,111000.0,1.07126142]
[1752089881005,0.38,111010.0,111000.0,0.74639]
[1752089881207,0.38,111010.0,111000.0,0.97694525]
[1752089881412,0.38,111010.0,111000.0,1.38051667]
[1752089881708,0.38,111010.0,111000.0,3.05681267]
[1752089881903,0.38,111010.0,111000.0,3.09516576]
[1752089882103,0.34,111010.0,111000.0,3.21523166]
[1752089882307,0.34,111010.0,111000.0,3.12646072]
[1752089882707,0.34,111010.0,111000.0,2.06061]
[1752089882906,0.34,111010.0,111000.0,0.81449]
[1752089883509,0.34,111010.0,111000.0,2.25175852]
[1752089883510,0.38,111010.0,111000.0,2.25175852]
[1752089883707,0.74547142,111010.0,111000.0,0.725399]
[1752089883909,0.4195,111010.0,111000.0,0.6808]
[1752089884712,0.4205,111010.0,111000.0,0.6838]
[1752089884913,0.4586,111010.0,111000.0,1.56044]
[1752089885112,0.4586,111010.0,111000.0,1.58543]
[1752089885308,0.4586,111010.0,111000.0,1.56044]
[1752089885612,0.4586,111010.0,111000.0,1.58543]
[1752089886214,0.4576,111010.0,111000.0,1.58243]
[1752089886416,0.4586,111010.0,111000.0,1.58243]
[1752089886913,0.4586,111010.0,111000.0,1.62163]
[1752089887113,0.3886,111010.0,111000.0,1.62163]
[1752089887313,0.3886,111010.0,111000.0,1.66299041]
[1752089887912,0.3876,111010.0,111000.0,1.66399041]
[1752089888611,0.3695,111010.0,111000.0,1.68399041]
[1752089889112,0.3695,111010.0,111000.0,1.68123]
[1752089889313,0.002,111040.0,111000.0,2.3807005]
[1752089889612,0.062,111040.0,111030.0,0.7216]
[1752089889801,0.062,111040.0,111030.0,2.93666]
[1752089890007,0.062,111040.0,111030.0,3.48222012]
[1752089891203,0.062,111040.0,111030.0,3.30213142]
[1752089891407,0.062,111040.0,111030.0,3.33496]
[1752089891613,0.1001,111040.0,111030.0,3.33496]
[1752089891804,0.1001,111040.0,111030.0,3.37356]
[1752089892005,0.0401,111040.0,111030.0,3.00356]
[1752089892204,0.18029241,111040.0,111030.0,3.36356]
[1752089892406,0.75218383,111040.0,111030.0,0.501]
[1752089892607,0.61266383,111040.0,111030.0,0.501]
[1752089892812,0.79273633,111040.0,111030.0,0.501]
[1752089893010,0.79273633,111040.0,111030.0,1.42244835]
[1752089893011,0.14519241,111040.0,111030.0,1.42244835]
[1752089893210,0.13137933,111040.0,111030.0,1.8794993]
[1752089893417,0.13137933,111040.0,111030.0,1.36893965]
[1752089893618,0.13137933,111040.0,111030.0,1.00346823]
[1752089893813,0.13137933,111040.0,111030.0,0.82337953]
[1752089894013,0.005,111040.0,111030.0,0.46393837]
[1752089894215,0.08758679,111040.0,111030.0,0.81393837]
[1752089894516,0.26765929,111040.0,111030.0,0.81393837]
[1752089895117,0.26765929,111040.0,111030.0,0.38643837]
[1752089895118,0.67343071,111040.0,111030.0,0.38643837]
[1752089895418,0.16832531,111040.0,111030.0,1.25331837]
[1752089895622,0.34339781,111040.0,111030.0,1.29181783]
[1752089895823,0.38369781,111040.0,111030.0,1.29181783]
[1752089896018,0.07288679,111040.0,111030.0,1.29181783]
[1752089896210,0.25295929,111040.0,111030.0,0.38643783]
[1752089896415,0.30195929,111040.0,111030.0,0.72643783]
[1752089896611,0.30195929,111040.0,111030.0,1.25407783]
[1752089896612,0.48188679,111040.0,111030.0,1.25407783]
[1752089896817,0.42488679,111040.0,111030.0,1.25407783]
[1752089897110,0.03258679,111040.0,111030.0,0.89235783]
[1752089897310,0.03258679,111040.0,111030.0,0.89435783]
[1752089897311,0.57365929,111040.0,111030.0,0.89435783]
[1752089897521,0.64645929,111040.0,111030.0,0.92435783]
[1752089897716,0.28645929,111040.0,111030.0,0.89435783]
[1752089897912,1.40205071,111040.0,111030.0,0.03663783]
[1752089898112,1.77675821,111040.0,110990.0,0.00180188]
[1752089898320,0.90640882,111000.0,110990.0,0.02462902]
[1752089898525,1.32309561,111000.0,110990.0,0.04462902]
[1752089898821,1.87028761,111000.0,110990.0,0.04462902]
[1752089899122,0.1801861,110970.0,110960.0,0.87028]
[1752089899313,0.61862069,110970.0,110960.0,0.86968]
[1752089899514,0.69192069,110970.0,110960.0,0.33]
[1752089899725,1.12192069,110970.0,110960.0,0.33]
[1752089900021,0.72452423,110970.0,110960.0,0.33]
[1752089900230,0.22122423,110970.0,110960.0,0.33]
[1752089900423,0.70831212,110970.0,110960.0,0.33]
[1752089900612,0.70831212,110970.0,110960.0,0.335]
[1752089900613,0.65047289,110970.0,110960.0,0.335]
[1752089900813,0.22222423,110970.0,110960.0,1.56951142]
[1752089901013,0.58302423,110970.0,110960.0,1.56951142]
[1752089901214,0.22229116,110970.0,110960.0,1.20404]
[1752089901821,0.22229116,110970.0,110960.0,1.74971372]
[1752089902028,0.22229116,110970.0,110960.0,1.76971372]
[1752089902328,0.22229116,110970.0,110960.0,2.34531372]
[1752089902524,0.76327726,110970.0,110960.0,0.9306]
[1752089902733,0.76327726,110970.0,110960.0,1.79856]
[1752089902734,0.58309116,110970.0,110960.0,1.79856]
[1752089902922,0.03358679,110970.0,110960.0,1.1108026]
[1752089903122,0.03358679,110970.0,110960.0,2.16307142]
[1752089903420,0.22229116,110970.0,110960.0,2.34327402]
[1752089903623,0.22229116,110970.0,110960.0,2.73407402]
[1752089904815,0.58309116,110970.0,110960.0,1.75032]
[1752089905027,0.22233766,110970.0,110960.0,2.29599402]
[1752089905213,0.58313766,110970.0,110960.0,2.20954389]
[1752089905419,0.03358679,110970.0,110960.0,2.12974389]
[1752089905614,0.03358679,110970.0,110960.0,1.94954129]
[1752089905827,0.03358679,110970.0,110960.0,1.76427247]
[1752089906019,0.03358679,110970.0,110960.0,2.18149402]
[1752089906219,0.03258679,110970.0,110960.0,2.18149402]
[1752089906514,0.03358679,110970.0,110960.0,1.55806234]
[1752089906717,0.55894929,110970.0,110960.0,1.55806234]
[1752089907128,0.55894929,110970.0,110960.0,1.58806234]
[1752089907430,1.2702631,110970.0,110960.0,1.20756]
[1752089907726,1.4504494,110970.0,110960.0,0.343]
[1752089907924,0.9863631,110970.0,110960.0,1.20652]
[1752089908121,0.9094631,110970.0,110960.0,2.11263402]
[1752089908428,0.93095454,110970.0,110960.0,2.11263402]
[1752089909020,0.40559204,110970.0,110960.0,1.74883402]
[1752089909226,0.40559204,110970.0,110960.0,1.54604297]
[1752089909527,0.40559204,110970.0,110960.0,1.90684297]
[1752089910027,0.05507823,110970.0,110960.0,1.93074297]
[1752089910326,0.05507823,110970.0,110960.0,1.90684297]
[1752089910527,0.05507823,110970.0,110960.0,2.00394297]
[1752089910728,0.05507823,110970.0,110960.0,2.50394297]
[1752089911021,0.05407823,110970.0,110960.0,2.52858817]
[1752089911225,0.05507823,110970.0,110960.0,1.2493452]
[1752089911526,0.86085282,110970.0,110960.0,0.8646452]
[1752089911717,1.1305292,110970.0,110960.0,0.8646452]
[1752089911914,0.94374101,110970.0,110960.0,0.8646452]
[1752089912119,1.13262783,110970.0,110960.0,0.3646452]
[1752089912318,0.95244143,110970.0,110960.0,0.91031922]
[1752089912519,0.09677823,110970.0,110960.0,0.73011662]
[1752089912728,0.09677823,110970.0,110960.0,0.91031922]
[1752089912924,0.09677823,110970.0,110960.0,0.73011662]
[1752089913119,0.09677823,110970.0,110960.0,0.35056223]
[1752089913120,0.27696463,110970.0,110960.0,0.35056223]
[1752089913320,0.67686463,110970.0,110960.0,0.35056223]
[1752089913523,0.67686463,110970.0,110960.0,0.38056223]
[1752089913730,0.70016463,110970.0,110960.0,0.38056223]
[1752089914228,2.35247605,110970.0,110960.0,0.29943344]
[1752089914418,0.0450552,110950.0,110930.0,0.36547142]
[1752089914624,0.2586351,110940.0,110930.0,0.68547142]
[1752089914920,0.31271333,110940.0,110930.0,0.32]
[1752089915124,0.67351333,110940.0,110930.0,0.32]
[1752089915430,0.67351333,110940.0,110930.0,0.68547142]
[1752089915431,0.62822179,110940.0,110930.0,0.68547142]
[1752089915633,0.62822179,110940.0,110930.0,0.32]
[1752089915826,0.18902179,110940.0,110930.0,0.86572272]
[1752089916029,0.05407823,110940.0,110930.0,0.68547142]
[1752089916330,0.05407823,110940.0,110930.0,0.32]
[1752089916531,0.80645858,110940.0,110930.0,0.32]
[1752089916827,0.49127823,110940.0,110930.0,0.32]
[1752089917032,0.49327823,110940.0,110930.0,0.32]
[1752089917330,0.78146716,110940.0,110930.0,0.68547142]
[1752089917735,0.67351333,110940.0,110930.0,0.68547142]
[1752089918025,0.49327823,110940.0,110930.0,0.32]
[1752089918421,0.78146716,110940.0,110930.0,0.32]
[1752089918621,0.78146716,110940.0,110930.0,0.36]
[1752089919328,0.75447524,110940.0,110930.0,0.36]
[1752089919533,1.14353666,110940.0,110930.0,0.36]
[1752089919730,1.06257475,110940.0,110930.0,0.36]
[1752089919927,0.69710333,110940.0,110930.0,0.36]
[1752089920723,0.1802513,110930.0,110920.0,0.00180302]
[1752089920932,1.44552953,110930.0,110920.0,0.36180302]
[1752089921128,1.44552953,110930.0,110920.0,0.10180302]
[1752089921335,0.59512953,110930.0,110920.0,0.34180302]
[1752089921537,1.08388953,110930.0,110920.0,0.34180302]
[1752089921835,1.87468953,110930.0,110920.0,0.37830302]
[1752089922029,1.95766407,110930.0,110920.0,0.36830302]
[1752089922337,1.87668953,110930.0,110920.0,0.36830302]
[1752089922533,1.95766407,110930.0,110920.0,0.36830302]
[1752089922740,0.05607823,110930.0,110920.0,0.73377444]
[1752089922925,0.23632953,110930.0,110920.0,0.77037444]
[1752089923125,0.59712953,110930.0,110920.0,0.33180302]
[1752089923324,1.02712953,110930.0,110920.0,0.33180302]
[1752089923534,1.02712953,110930.0,110920.0,0.35180302]
[1752089923932,1.10242953,110930.0,110920.0,0.35180302]
[1752089924430,1.10242953,110930.0,110920.0,0.3790196]
[1752089924830,0.05607823,110930.0,110920.0,1.10529102]
[1752089925036,0.05607823,110930.0,110920.0,1.14259102]
[1752089925342,0.05607823,110930.0,110920.0,1.17979102]
[1752089925528,0.05607823,110930.0,110920.0,1.54036262]
[1752089925730,0.05607823,110930.0,110920.0,1.56389262]
[1752089926232,0.05607823,110930.0,110920.0,1.38358862]
[1752089926433,0.23632953,110930.0,110920.0,0.84252102]
[1752089926739,0.05607823,110930.0,110920.0,0.84252102]
[1752089927142,0.05607823,110930.0,110920.0,0.82252102]
[1752089927348,0.05607823,110930.0,110920.0,1.18332102]
[1752089927940,0.05607823,110930.0,110920.0,0.82252102]
[1752089928139,0.05607823,110930.0,110920.0,1.18332102]
[1752089928541,0.05607823,110930.0,110920.0,0.84252102]
[1752089928742,0.05607823,110930.0,110920.0,1.02278862]
[1752089929242,0.84352,110930.0,110920.0,0.84252102]
[1752089929442,1.0237713,110930.0,110920.0,0.81899102]
[1752089929645,0.88122,110930.0,110920.0,0.40270118]
[1752089929842,1.0614713,110930.0,110920.0,0.40270118]
[1752089930042,1.1004713,110930.0,110920.0,0.37949332]
[1752089930240,1.4848613,110930.0,110920.0,0.37949332]
[1752089930445,1.4848613,110930.0,110920.0,0.36540174]
[1752089930843,1.6631253,110930.0,110920.0,0.35180302]
[1752089931039,1.482874,110930.0,110920.0,0.35180302]
[1752089931244,1.32174374,110930.0,110920.0,0.35180302]
[1752089931445,0.002,110930.0,110920.0,0.92107204]
[1752089931645,0.84176,110930.0,110920.0,1.02350384]
[1752089932042,0.88252053,110930.0,110920.0,0.55890242]
[1752089932249,1.28096,110930.0,110920.0,0.31180302]
[1752089932758,0.4035,110930.0,110920.0,0.49207062]
[1752089932940,1.24042,110930.0,110920.0,0.35100302]
[1752089933650,1.24042,110930.0,110920.0,0.55127062]
[1752089933853,1.24006,110930.0,110920.0,0.55127062]
[1752089934146,0.003,110930.0,110920.0,0.91674204]
[1752089934350,0.003,110930.0,110920.0,0.97867204]
[1752089934747,0.005,110930.0,110920.0,1.04527314]
[1752089934945,0.005,110930.0,110920.0,1.06880314]
[1752089935342,0.005,110930.0,110920.0,1.00020754]
[1752089935551,0.003,110930.0,110920.0,0.63473612]
[1752089935846,0.003,110930.0,110920.0,0.65826612]
[1752089936052,0.003,110930.0,110920.0,1.01906612]
[1752089936453,1.86976161,110940.0,110930.0,0.1802514]
[1752089936645,1.83316161,110940.0,110930.0,0.82376115]
[1752089936842,0.54120921,110960.0,110940.0,0.2252935]
[1752089937144,0.00020551,110960.0,110950.0,1.09666545]
[1752089937344,0.00020551,110960.0,110950.0,1.39682324]
[1752089937544,0.0384,110990.0,110950.0,3.03589828]
[1752089937749,0.6761175,110980.0,110970.0,0.07849764]
[1752089938055,0.6761175,110980.0,110970.0,0.48258835]
[1752089938056,0.6310722,110980.0,110970.0,0.48258835]
[1752089938261,0.7300622,110980.0,110970.0,0.13258835]
[1752089938555,1.5645822,110980.0,110970.0,0.10645091]
[1752089938749,0.6399739,110980.0,110970.0,0.41645091]
[1752089938951,0.42139,110980.0,110970.0,0.45225091]
[1752089939145,0.42139,110980.0,110970.0,1.03560873]
[1752089939146,0.02559,110980.0,110970.0,1.03560873]
[1752089939353,0.02559,110980.0,110970.0,1.06174617]
[1752089939748,0.02559,110980.0,110970.0,1.10174617]
[1752089939948,0.02559,110980.0,110970.0,1.46254617]
[1752089940156,0.02559,110980.0,110970.0,3.05208853]
[1752089940650,0.4078371,111000.0,110970.0,1.20386213]
[1752089940856,0.4078371,111000.0,110970.0,0.40409071]
[1752089940857,0.1801702,110980.0,110970.0,0.40409071]
[1752089941054,1.5840503,110990.0,110970.0,0.40409071]
[1752089941355,0.5409702,110980.0,110970.0,0.40409071]
[1752089941557,1.81672162,110980.0,110970.0,0.40409071]
[1752089941858,1.4512502,110980.0,110970.0,0.40409071]
[1752089942151,0.6183701,110980.0,110970.0,0.40409071]
[1752089942351,1.19396,110980.0,110970.0,0.87424197]
[1752089942552,0.3608,110980.0,110970.0,0.98684853]
[1752089942755,0.8332,110980.0,110970.0,1.18162037]
[1752089943053,0.5429389,111000.0,110980.0,0.270254]
[1752089943355,0.5429389,111000.0,110990.0,0.10214885]
[1752089943356,0.3628,111000.0,110990.0,0.10214885]
[1752089943550,1.19532,111000.0,110990.0,0.46623956]
[1752089943749,1.19732,111000.0,110990.0,0.48000956]
[1752089944248,0.004,111000.0,110990.0,1.33134603]
[1752089944447,0.00213507,111010.0,111000.0,0.1801377]
[1752089944656,0.00213507,111010.0,111000.0,1.04916944]
[1752089944852,0.00213507,111010.0,111000.0,1.33132983]
[1752089945557,0.5408891,111030.0,111010.0,0.2701632]
[1752089945758,1.583728,111040.0,111020.0,0.08973147]
[1752089946053,0.7066261,111040.0,111030.0,0.09175376]
[1752089946260,1.5387061,111040.0,111030.0,0.463413]
[1752089946651,0.180089,111030.0,111020.0,0.09191232]
[1752089946850,0.1801052,111020.0,111010.0,0.05243147]
[1752089947051,1.3720252,111020.0,111010.0,0.39243147]
[1752089947354,1.5521772,111020.0,111010.0,0.39243147]
[1752089947659,0.5409052,111020.0,111010.0,0.39243147]
[1752089947852,0.5409052,111020.0,111010.0,0.47107868]
[1752089947853,0.3608,111020.0,111010.0,0.47107868]
[1752089948059,0.5409052,111020.0,111010.0,0.45554721]
[1752089948256,0.5419052,111020.0,111010.0,0.45654721]
[1752089948557,0.5419052,111020.0,111010.0,0.67666861]
[1752089948558,0.3618,111020.0,111010.0,0.67666861]
[1752089948753,0.001,111020.0,111010.0,0.5980214]
[1752089948955,0.001,111020.0,111010.0,0.67677748]
[1752089949151,0.5419052,111020.0,111010.0,0.4179]
[1752089949351,1.3709452,111020.0,111010.0,0.4179]
[1752089949751,1.3699452,111020.0,111010.0,0.4169]
[1752089949959,1.3709452,111020.0,111010.0,0.4179]
[1752089950260,1.3709852,111020.0,111010.0,0.47257984]
[1752089950661,1.4454052,111020.0,111010.0,0.47257984]
[1752089950861,1.81087662,111020.0,111010.0,0.07984187]
[1752089951058,2.24102862,111020.0,111010.0,0.001]
[1752089952064,0.6174052,111020.0,111010.0,0.001]
[1752089952254,2.61919649,111020.0,110990.0,0.10467984]
[1752089952458,0.9017377,111000.0,110990.0,0.10467984]
[1752089952652,1.6392736,111000.0,110980.0,0.10467984]
[1752089952855,0.4001,111000.0,110980.0,0.67934994]
[1752089953055,0.4001,111000.0,110990.0,0.16757984]
[1752089953056,0.3608,111000.0,110990.0,0.16757984]
[1752089953260,0.82748,111000.0,110990.0,0.49757984]
[1752089953564,1.3684177,111000.0,110990.0,0.49757984]
[1752089953963,1.3684177,111000.0,110990.0,0.3929]
[1752089954561,0.3608,111000.0,110990.0,0.4429]
[1752089954859,0.3608,111000.0,110990.0,0.6230538]
[1752089955061,0.5859538,111010.0,110990.0,0.98852522]
[1752089955364,0.5409234,111010.0,111000.0,0.1434235]
[1752089955563,1.3665234,111010.0,111000.0,0.4634235]
[1752089955954,1.4023234,111010.0,111000.0,0.4634235]
[1752089956159,0.5767234,111010.0,111000.0,0.4634235]
[1752089956355,1.4014434,111010.0,111000.0,0.4634235]
[1752089956560,1.4413434,111010.0,111000.0,0.3582]
[1752089956858,0.1801404,111000.0,110990.0,0.1052235]
[1752089957064,0.5409404,111000.0,110990.0,0.4252235]
[1752089957264,0.1801566,110990.0,110980.0,0.1052235]
[1752089957455,0.0450443,110980.0,110960.0,0.10702587]
[1752089957661,2.12666042,110970.0,110960.0,0.00180237]
[1752089957857,0.7216,110970.0,110960.0,0.4726475]
[1752089958059,1.725229,110970.0,110960.0,0.5895475]
[1752089958360,1.905469,110970.0,110960.0,0.52529029]
[1752089958561,1.905469,110970.0,110960.0,0.48709029]